Cogmind - Beta 13 @@@ ROGUE MODE // 2024.04.13 @ 19:29:01 Player: Ladmageddon Result: Destroyed by G-47 Trooper with Particle Gun Performance ------------- Evolutions (2) 1000 Regions Visited (4) 800 Robots Destroyed (29) 145 Value Destroyed (955) 955 Prototype IDs (0) 0 Alien Tech Used (0) 0 Bonus (0) 0 TOTAL SCORE: 2900 Bonus ------- None Cogmind --------- Core Integrity 0/550 Matter 167/300 Energy 84/100 System Corruption 0% Temperature Cool (18) Movement Core (2350) Ox46 Location -8/Storage Parts ------- > --- POWER (1) -------- (None) > --- PROPULSION (4) --- (None) > --- UTILITY (4) ------ Cargo Storage Unit > --- WEAPON (2) ------- Light Assault Rifle > --- INVENTORY (30) --- Light Ion Engine Aluminum Leg Wheel Heat Sink Improved Heat Sink Visual Processing Unit Core Shielding Core Shielding Core Shielding Mining Laser Peak State ------------ > --- POWER ------------ Light Nuclear Core > --- PROPULSION ------- Airjet > --- UTILITY ---------- Cargo Storage Unit Core Shielding Hardened Light Armor Plating > --- WEAPON ----------- Autogun High-powered Shotgun > --- INVENTORY -------- Light Ion Engine Aluminum Leg Heat Sink Improved Heat Sink Visual Processing Unit Core Shielding Core Shielding Core Shielding Beam Rifle Light Assault Rifle High-powered Shotgun High-powered Shotgun High-powered Shotgun Flak Cannon Mining Laser [Rating: 18] Favorites ----------- Power Light Nuclear Core Engine Ion Engine Power Core Light Nuclear Core Propulsion Light Treads Treads Light Treads Leg Aluminum Leg Hover Unit Airjet Utility Cargo Storage Unit Device Improved Heat Sink Storage Cargo Storage Unit Processor Signal Interpreter Protection Core Shielding Weapon High-powered Shotgun Energy Gun Medium Laser Ballistic Gun High-powered Shotgun Ballistic Cannon Flak Cannon Special Weapon Mining Laser Build | -11 -10 -9 -8 -8 ------- Run | Yrd Mat Mat Mat Sto Slots Evolved 4 | . . 2 2 . Power . | . . . . . Propulsion 2 | . . . 2 . Utility 2 | . . 2 . . Weapon . | . . . . . Parts Attached 31 | 5 8 10 2 6 Power 4 | 1 1 2 . . Engine 3 | 1 1 1 . . Core 1 | . . 1 . . Reactor . | . . . . . Propulsion 7 | 2 2 1 2 . Treads 5 | 2 2 1 . . Leg 1 | . . . 1 . Wheel . | . . . . . Hover 1 | . . . 1 . Flight . | . . . . . Utility 8 | 1 3 4 . . Device 1 | . . 1 . . Storage 3 | 1 1 1 . . Processor 1 | . 1 . . . Hackware . | . . . . . Protection 3 | . 1 2 . . Artifact . | . . . . . Weapon 12 | 1 2 3 . 6 Energy Gun 3 | 1 1 . . 1 Energy Cannon . | . . . . . Ballistic Gun 7 | . . 3 . 4 Ballistic Cannon 1 | . . . . 1 Launcher . | . . . . . Special Weapon 1 | . 1 . . . Impact Weapon . | . . . . . Slashing Weapon . | . . . . . Piercing Weapon . | . . . . . Special Melee Weapon . | . . . . . Unidentified Prototypes . | . . . . . Parts Lost 17 | . . 6 . 11 Power 2 | . . 1 . 1 Propulsion 4 | . . 3 . 1 Utility 3 | . . 1 . 2 Weapon 8 | . . 1 . 7 Highest Loss Streak 7 | . . 3 . 7 To Critical Strikes . | . . . . . Average Slot Usage (%) 70 | . 91 80 63 51 Engine 4 | . 13 10 . . Core 4 | . . . 9 6 Treads 8 | . 26 15 . . Leg 1 | . . . 3 . Hover 3 | . . . 5 6 Device 1 | . . 6 . . Storage 10 | . 14 11 9 9 Processor 1 | . 6 . . . Protection 13 | . . 14 18 12 Energy Gun 5 | . 25 6 . 1 Ballistic Gun 13 | . . 12 18 15 Special Weapon 1 | . 2 2 . . Naked Turns . | . . . . . Heaviest Build 157 | 12 49 157 157 157 Greatest Support 40 | 40 40 40 10 8 Greatest Overweight (x) 52 | . 14 52 19 49 Average Overweight (x) 6 | . . 4 17 22 Largest Inventory Capacity 30 | 8 20 30 30 30 Average Capacity 27 | 7 17 30 30 30 Most Carried 15 | 5 13 14 15 15 Average Carried 11 | 1 5 10 14 13 Final Capacity 30 | 8 20 30 30 30 Final Carried 15 | 2 10 13 15 10 Class Distribution -------------------- 84% | Hauler-Mutant 15% | Mutant Dominant Class ---------------- Mutant | -10/Materials Hauler-Mutant | -9/Materials Hauler-Mutant | -8/Materials Hauler-Mutant | -8/Storage Resources | -11 -10 -9 -8 -8 ----------- Run | Yrd Mat Mat Mat Sto Matter Collected 743 | 250 30 158 219 86 Remotely . | . . . . . Salvage Created 953 | . 223 416 . 314 Parts 63 | . 15 33 . 15 Haulers Intercepted . | . . . . . Recyclers Shooed . | . . . . . Parts Field Recycled . | . . . . . Retrieved Matter . | . . . . . Parts Self-Destructed . | . . . . . Prevented . | . . . . . Kills | -11 -10 -9 -8 -8 ------- Run | Yrd Mat Mat Mat Sto Combat Hostiles Destroyed 26 | . 4 14 . 8 Guns 25 | . 4 14 . 7 Cannons 1 | . . . . 1 Classes Destroyed 6 | . 2 2 . 2 Worker 1 | . . . . 1 Watcher 2 | . 1 1 . . Swarmer 5 | . . 5 . . Grunt 17 | . 4 8 . 5 Sentry 3 | . . 1 . 2 Hunter 1 | . . . . 1 Best Kill Streak 4 | . 2 4 . 4 Combat Bots Only 4 | . 2 4 . 3 Max Kills in Single Turn 1 | . 1 1 . 1 Gunslinging . | . . . . . Exploded . | . . . . . Melee . | . . . . . Uniques/NPCs Destroyed . | . . . . . Combat | -11 -10 -9 -8 -8 -------- Run | Yrd Mat Mat Mat Sto Hostile Shots Fired 281 | . 26 115 . 140 Missed 63 | . 5 27 . 31 Damage Taken 3006 | . 269 994 . 1743 Core 719 | . 66 95 . 558 Absorbed by Shields . | . . . . . Redirected to Shielding 50 | . . 20 . 30 Core Remaining (%) 83 | 100 73 76 . . Volleys Fired 89 | . 15 38 1 35 Largest 2 | . 2 2 2 2 Hottest 90 | . 90 75 48 81 Shots Fired 169 | . 30 75 2 62 Gun 165 | . 30 75 2 58 Cannon 4 | . . . . 4 Launcher . | . . . . . Special . | . . . . . Kinetic 112 | . . 59 2 51 Thermal 42 | . 15 16 . 11 Explosive . | . . . . . Electromagnetic 15 | . 15 . . . Robot Hit Streak 12 | . 6 12 . 5 Robot Miss Streak 8 | . 2 8 . 8 Penetration Max . | . . . . . Secondary Targets 3 | . . 1 . 2 Max Gunslinging Chain 1 | . . 1 . 1 Shots Hit Robots 105 | . 19 46 . 40 Core Hits 61 | . 10 24 . 27 Critical Kills . | . . . . . Critical Parts Destroyed 1 | . . 1 . . Critical Strikes 4 | . 2 2 . . Burn 2 | . 1 1 . . Destroy 1 | . . 1 . . Corrupt 1 | . 1 . . . Melee Attacks . | . . . . . Impact . | . . . . . Slashing . | . . . . . Piercing . | . . . . . Sneak Attacks . | . . . . . Combat Hostiles . | . . . . . Follow-up Attacks . | . . . . . Damage Inflicted 1854 | . 255 778 . 821 Guns 1775 | . 255 772 . 748 Cannons 73 | . . . . 73 Explosions . | . . . . . Melee . | . . . . . Ramming 6 | . . 6 . . Kinetic 1333 | . . 612 . 721 Thermal 375 | . 115 160 . 100 Explosive . | . . . . . Electromagnetic 140 | . 140 . . . Impact . | . . . . . Slashing . | . . . . . Piercing . | . . . . . Highest Corruption . | . . . . . Average Corruption . | . . . . . Corruption Purged . | . . . . . Corruption Blocked . | . . . . . Overload Shots . | . . . . . Overflow Damage . | . . . . . Projectiles . | . . . . . Explosions . | . . . . . Melee . | . . . . . Knockbacks 1 | . . . . 1 Impact . | . . . . . Kinetic 1 | . . . . 1 Secondary . | . . . . . Self-Inflicted Damage . | . . . . . Shots . | . . . . . Rammed 2 | . . 2 . . Targets Rammed 2 | . . 2 . . Kicked . | . . . . . Crushed . | . . . . . Highest Temperature 245 | . 245 78 12 239 Average Temperature 83 | . 109 31 9 96 Received Heat Transfer 1203 | . 168 387 . 648 Siege Activations . | . . . . . Robots Corrupted . | . . . . . Combat Hostiles . | . . . . . Parts Fried . | . . . . . Impact Corruptions . | . . . . . Robots Melted . | . . . . . Combat Hostiles . | . . . . . Parts Melted 2 | . 1 . . 1 Heat Transferred 1221 | . 407 555 . 259 Parts Sabotaged . | . . . . . Parts Stolen . | . . . . . Parts Stripped . | . . . . . Power Chain Reactions . | . . . . . Alert | -11 -10 -9 -8 -8 ------- Run | Yrd Mat Mat Mat Sto Peak Influence 260 | . 107 260 64 125 Initial 64 | . . . 64 . Average 34 | . 30 75 13 27 Maximum Alert Level 1 | . . 1 . . Low Security (%) 97 | 100 100 91 100 100 Level 1 2 | . . 8 . . Level 2 . | . . . . . Level 3 . | . . . . . Level 4 . | . . . . . Level 5 . | . . . . . High Security . | . . . . . Max Security . | . . . . . Squads Dispatched 11 | . 2 2 4 3 Investigation 4 | . 1 1 2 . Extermination . | . . . . . Reinforcement 5 | . 1 1 2 1 Assault . | . . . . . Garrison 2 | . . . . 2 Intercept . | . . . . . Searches Triggered . | . . . . . Construction Impeded . | . . . . . Haulers Reinforced . | . . . . . Active Scanning Responses . | . . . . . Cargo Convoy Interrupts . | . . . . . Stealth | -11 -10 -9 -8 -8 --------- Run | Yrd Mat Mat Mat Sto Distress Signals 6 | . . 2 1 3 Communications Jammed . | . . . . . Distress Signals . | . . . . . Times Spotted 47 | . 8 25 . 14 Peak Tracking Total 10 | . 3 10 1 5 Tactical Retreats 3 | . . 3 . . Traps | -11 -10 -9 -8 -8 ------- Run | Yrd Mat Mat Mat Sto Traps Triggered 3 | . 2 1 . . Indirectly . | . . . . . Trap Hack Attempts . | . . . . . Triggered . | . . . . . Disarmed . | . . . . . Reprogrammed . | . . . . . Reused . | . . . . . Traps Extracted . | . . . . . Installed . | . . . . . Triggered . | . . . . . Machines | -11 -10 -9 -8 -8 ---------- Run | Yrd Mat Mat Mat Sto Machines Disabled . | . . . . . Max in Single Turn . | . . . . . Machines Repaired . | . . . . . Machines Dismantled . | . . . . . Machines Sabotaged . | . . . . . Overloaded Fab Kills . | . . . . . Hacking | -11 -10 -9 -8 -8 --------- Run | Yrd Mat Mat Mat Sto Machines Accessed 1 | . 1 . . . Terminals 1 | . 1 . . . Fabricators . | . . . . . Repair Stations . | . . . . . Recycling Units . | . . . . . Scanalyzers . | . . . . . Garrison Access . | . . . . . Total Hacks 3 | . 3 . . . Successful 1 | . 1 . . . Failed 2 | . 2 . . . Catastrophic . | . . . . . Database Lockouts . | . . . . . Manual . | . . . . . Terminals 3 | . 3 . . . Fabricators . | . . . . . Repair Stations . | . . . . . Recycling Units . | . . . . . Scanalyzers . | . . . . . Garrison Access . | . . . . . Terminal Hacks 1 | . 1 . . . Zone Layout 1 | . 1 . . . Fabricator Hacks . | . . . . . Repair Station Hacks . | . . . . . Recycling Unit Hacks . | . . . . . Scanalyzer . | . . . . . Garrison Access Hacks . | . . . . . Unauthorized Hacks . | . . . . . Terminals . | . . . . . Fabricators . | . . . . . Repair Stations . | . . . . . Recycling Units . | . . . . . Scanalyzers . | . . . . . Garrison Access . | . . . . . Data Cores Recovered . | . . . . . Used . | . . . . . Hacking Detections 1 | . 1 . . . Full Trace Events . | . . . . . Feedback Events . | . . . . . Feedback Blocked . | . . . . . Robot Schematics Acquired . | . . . . . Robots Built . | . . . . . Authchips . | . . . . . Time . | . . . . . Total Robot Build Rating . | . . . . . Part Schematics Acquired . | . . . . . Parts Built . | . . . . . Authchips . | . . . . . Time . | . . . . . Total Part Build Rating . | . . . . . Parts Repaired . | . . . . . Time . | . . . . . Parts Recycled . | . . . . . Recycled Matter . | . . . . . Retrieved Matter . | . . . . . Retrieved Components . | . . . . . Parts Scanalyzed . | . . . . . Part Schematics Acquired . | . . . . . Parts Damaged . | . . . . . Bothacking | -11 -10 -9 -8 -8 ------------ Run | Yrd Mat Mat Mat Sto Used RIF Installer . | . . . . . Robots Hacked . | . . . . . Non-combat . | . . . . . Combat . | . . . . . Robot Hacks Applied . | . . . . . Relay Couplers Released . | . . . . . Fabnet Peak Effective % . | . . . . . Robots Rewired . | . . . . . Allies Hacked . | . . . . . Hacks Repelled . | . . . . . Allies | -11 -10 -9 -8 -8 -------- Run | Yrd Mat Mat Mat Sto Total Allies . | . . . . . Largest Group . | . . . . . Highest-Rated Group . | . . . . . Highest-Rated Ally . | . . . . . Total Orders . | . . . . . Ally Attacks . | . . . . . Total Damage . | . . . . . Kills . | . . . . . Allies Corrupted . | . . . . . Allies Melted . | . . . . . Intel | -11 -10 -9 -8 -8 ------- Run | Yrd Mat Mat Mat Sto Robot Analysis Total . | . . . . . Derelict Logs Recovered . | . . . . . Drone Launches . | . . . . . Drone Recoveries . | . . . . . Exploration | -11 -10 -9 -8 -8 ------------- Run | Yrd Mat Mat Mat Sto Turns Passed 4406 | 65 646 1233 1913 549 Spaces Moved 704 | 44 262 204 161 33 Core 23 | 15 3 1 . 4 Treads 491 | 29 259 203 . . Legs 60 | . . . 60 . Wheels . | . . . . . Hover 130 | . . . 101 29 Flight . | . . . . . Fastest Speed 50 | 50 160 400 1170 1200 Average Speed 582 | 122 219 542 1188 1353 Slowest Speed 2650 | 160 750 2650 1200 2500 Overloaded Moves . | . . . . . Propulsion Burnouts . | . . . . . Robots Hopped . | . . . . . Cave-ins Triggered . | . . . . . Exploration Rate (%) 21 | 3 46 25 24 10 Regions Visited 4 Branch Regions 1 Pre-discovered Areas . | . . . . . Known Exits Taken . | . . . . . Unknown Exits Taken 4 | 1 1 1 1 . Scrap Searched . | . . . . . Spaces Dug . | . . . . . Terrain Destroyed . | . . . . . Melee . | . . . . . Projectile . | . . . . . AOE . | . . . . . Terrain Rammed . | . . . . . Walls Destroyed . | . . . . . Machines Disabled . | . . . . . Actions | -11 -10 -9 -8 -8 --------- Run | Yrd Mat Mat Mat Sto Total 874 | 55 303 273 168 75 Wait 7 | . 3 2 2 . Move 700 | 43 261 203 160 33 Hop . | . . . . . Pick Up 38 | 7 14 13 3 1 Fast Attach . | . . . . . Attach 25 | 5 6 7 1 6 Detach 1 | . . 1 . . Swap 6 | . 2 3 1 . Drop 6 | . 2 4 . . Fire 89 | . 15 38 1 35 Melee . | . . . . . Ram . | . . . . . Kick . | . . . . . Crush 2 | . . 2 . . Escape Stasis . | . . . . . Rewire . | . . . . . Trap . | . . . . . Miscellaneous . | . . . . . Route ------- -11/Scrapyard -10/Materials -9/Materials -8/Materials -8/Storage History --------- Turn | Location | Event 6 | -11/Scrapyard | Discovered new exit (range 15) 66 | -11/Scrapyard | Entered Materials 311 | -10/Materials | Build established: Mutant 695 | -10/Materials | Discovered new exit (range 7) 712 | -10/Materials | Entered another Materials area 712 | -9/Materials | Evolved 2 slots: Utility x2 1002 | -9/Materials | Build established: Hauler-Mutant 1548 | -9/Materials | Lost 3 parts (1p1u1w) 1924 | -9/Materials | Discovered new exit (range 4) 1945 | -9/Materials | Entered another Materials area 1945 | -8/Materials | Evolved 2 slots: Propulsion x2 3338 | -8/Materials | Met 7R-MNS 3678 | -8/Materials | Discovered new exit (range 14) 3858 | -8/Materials | Entered Storage 4232 | -8/Storage | Garrison activated, responded to threat 4277 | -8/Storage | Core integrity fell below 50% 4289 | -8/Storage | Lost 7 parts (1p1n2u3w) 4364 | -8/Storage | Core integrity fell below 20% 4407 | -8/Storage | Destroyed by G-47 Trooper with Particle Gun Last Messages --------------- R-06 Scavenger destroyed. K-01 Serf collects debris. Y-45 Defender destroyed. K-01 Serf collects debris. G-47 Trooper destroyed. Switching to secondary target: H-55 Commando. K-01 Serf destroyed. Penetrated by Slug. H-55 Commando destroyed. Acquired Wheel. W-25 Informer sends out distress signal. R-06 Scavenger collects Particle Gun. R-06 Scavenger collects Wheel. Hpw. Shotgun destroyed. R-06 Scavenger knocked back. G-47 Trooper destroyed. Acquired 86 matter. Critical hit (Burn: +37). Hpw. Shotgun destroyed. Flak Cannon destroyed. Map ----- +----------------------------------------------------+ | ?????????????????????????????????????????????????? | | ?????????????????????????????????????????????????? | | ?????????????????????????????????????????????????? | | ?????????????????????????????????????????????????? | | ?????????????????????????????????????????????????? | | ?????????????????????????????????????????????????? | | ?????????????????????????????????????????????????? | | ?????????????????????????????????????????????????? | | ?????????????????????????????????????????????????? | | ?????????????????????????????????????????????????? | | ?????????????????????????????????????????????????? | | ?????????????????????????????????????????????????? | | ?????????????????????????????????????????????????? | | ?????????????????????????????????????????????????? | | ??????????????????????????????????????????######## | | ???????????????????????????????????????#### | | ???????????????????????????????????????#""" """ "" | | ???????????????????????????????????????#"R """ "R | | ???????????????????????????????????????#""" """ " | | ??????????????????????????????????????????# | | ??????????????????????????????????????????# | | ??????????????????????????????????????????#[ | | ???????????????### ???????????????????????# | | ?????????????### ########################+#### | | ?????????? g % %%% %= | | ?????????? g% !%= @=!! ! | | ?????????? a = l!=!! | | ?????????????### ############################# | | ???????????????####??????????????????????????????? | | ?????????????????????????????????????????????????? | | ?????????????????????????????????????????????????? | | ?????????????????????????????????????????????????? | | ?????????????????????????????????????????????????? | | | | | | | | | | | | | | | | | | | | | | | | | | | | | | | | | | | +----------------------------------------------------+ Best States ------------- Heat Dissipation 42 Energy Generation 14 Energy Capacity 250 Matter Stores 300 Matter Capacity 300 Sight Range 16 Terrain Scan Density 10 Armor Coverage 150 Core Shielding 20 Evasion (%) 40 Recoil Reduction 2 Item Schematics ----------------- None Robot Schematics ------------------ None Fabricated ------------ Nothing Alien Tech Used ----------------- None Achievements -------------- Tank Challenges ------------ None Game ------ Seed GunConstructReconfigurator Manual? 0 Play Time 00:18:58 Cumulative 4.3 hours Start 2024.04.13 @ 19:11:54 End 2024.04.13 @ 19:29:01 Sessions 1 Manual Loads 0 Difficulty Rogue Special Mode None Game No. 8 Rogue 5 Adventurer 3 Explorer 0 Win Type - Total 0 Types 0/0/0/0/0/0/0/0/0 Lore% 0 Gallery% 13 Achievement% 8 Wizard Run 0 Options --------- Layout 1 ASCII 0 Keyboard 0 Movement Mouse Keybinds 0 Fullscreen 1 Font 24/Smallcaps Map View 50x35 Zoom Use 0% Tactical HUD 0 Map Filters NONE Filters NONE Steam 1 RUN: 375479fc-4032-4883-a77a-72ef23457ad3